[Event "17th Memorial Lezcano Montalvo 2025"]
[Site "Gran Canaria"]
[Date "2025.04.19"]
[Round "8.21"]
[White "Gonzalez Perdomo, Sergio"]
[Black "Calzetta Ruiz, Monica"]
[Result "0-1"]
[Annotator "RC"]
[ECO "B36"]
[WhiteElo "1880"]
[BlackElo "2224"]
[PlyCount "72"]
[EventDate "2025.04.13"]
[EventType "swiss"]
[EventCountry "ESP"]
[SourceTitle "playchess.com"]
[Source "ChessBase"]
[SourceQuality "1"]
[TimeControl "5400+30"]

1. d4 {[%emt 0:00:03]} Nf6 {[%emt 0:00:45]} 2. Nf3 {[%emt 0:00:14]} c5 {[%emt 0:00:26]} 3. c4 {[%emt 0:00:19]} cxd4 {[%emt 0:01:11]} 4. Nxd4 {[%emt 0:00:09]} Nc6 {[%emt 0:01:03]} 5. Nc3 {[%emt 0:00:24]} g6 {[%emt 0:00:23]} 6. e4 {[%emt 0:00:16]} d6 {[%emt 0:00:21]} 7. Be2 {[%emt 0:00:12]} Nxd4 {[%emt 0:03:18]} 8. Qxd4 {[%emt 0:00:07]} Bg7 {[%emt 0:00:08]} 9. Be3 {[%emt 0:00:19]} O-O {[%emt 0:00:11]} 10. Qd2 {[%emt 0:00:08]} Be6 {[%emt 0:03:02]} 11. Rd1 {[%emt 0:06:44]} Qa5 {[%emt 0:01:00]} 12. O-O {[%emt 0:02:10]} Rfc8 {[%emt 0:00:16]} 13. b3 {[%emt 0:01:45]} a6 {[%emt 0:19:14]} 14. Bf3 {[%emt 0:21:50]} Nd7 {[%emt 0:08:49]} 15. Bd4 {[%emt 0:01:41]} Bxd4 {[%emt 0:01:22]} 16. Qxd4 {[%emt 0:01:05]} b5 {[%emt 0:16:17]} 17. Nd5 {[%emt 0:15:26]} Bxd5 {[%emt 0:01:03]} 18. Qxd5 {[%emt 0:01:22]} Qxa2 {[%emt 0:01:52]} 19. cxb5 {[%emt 0:01:39]} axb5 {[%emt 0:00:26]} 20. Qxb5 {[%emt 0:08:02]} Ne5 {[%emt 0:00:35]} 21. Qb7 {[%emt 0:03:33]} Kf8 {[%emt 0:04:07]} 22. Ra1 {[%emt 0:09:39]} Qxa1 {[%emt 0:01:42]} 23. Qxc8+ {[%emt 0:00:06]} Kg7 {[%emt 0:03:50]} 24. Qb7 {[%emt 0:05:42]} Ra7 {[%emt 0:03:40]} 25. Qb6 {[%emt 0:03:16]} Ra3 {[%emt 0:05:50]} 26. Qc7 {[%emt 0:03:54]} Nxf3+ {[%emt 0:01:34]} 27. gxf3 {[%emt 0:00:05]} Qf6 {[%emt 0:00:05]} 28. Qc2 {[%emt 0:01:11]} Ra5 {[%emt 0:03:23]} 29. Qd3 {[%emt 0:01:17]} Rh5 {[%emt 0:02:10]} 30. Rb1 {[%emt 0:04:48]} Qg5+ {[%emt 0:01:00]} 31. Kf1 {[%emt 0:01:19]} Rxh2 {[%emt 0:00:18]} 32. Ke2 {[%emt 0:00:19]} Qc5 {[%emt 0:00:42]} 33. Rf1 {[%emt 0:01:31]} h5 {[%emt 0:01:27]} 34. f4 {[%emt 0:00:44]} Rh4 {[%emt 0:04:31]} 35. f5 {[%emt 0:02:18]} Qe5 {[%emt 0:01:55]} 36. f3 {[%emt 0:01:01]} Rh2+ {[%emt 0:01:52]} 0-1

[Event "17th Memorial Lezcano Montalvo 2025"]
[Site "Gran Canaria"]
[Date "2025.04.19"]
[Round "8.22"]
[White "Garcia Brion, Eduardo"]
[Black "Quintero Hernandez, Marcos Jesus"]
[Result "*"]
[Annotator "ChessBase"]
[ECO "C22"]
[WhiteElo "2171"]
[BlackElo "1874"]
[PlyCount "25"]
[EventDate "2025.04.13"]
[EventType "swiss"]
[EventCountry "ESP"]
[SourceTitle "playchess.com"]
[Source "ChessBase"]
[SourceQuality "1"]
[TimeControl "5400+30"]

1. e4 {[%emt 0:00:02]} e5 {[%emt 0:00:10]} 2. d4 {[%emt 0:00:26]} exd4 {[%emt 0:00:41]} 3. Qxd4 {[%emt 0:00:07]} Nc6 {[%emt 0:00:18]} 4. Qe3 {[%emt 0:00:22]} Nf6 {[%emt 0:00:33]} 5. Nc3 {[%emt 0:00:06]} Bb4 {[%emt 0:00:30]} 6. Bd2 {[%emt 0:00:07]} O-O {[%emt 0:00:28]} 7. O-O-O {[%emt 0:00:54]} Re8 {[%emt 0:00:27]} 8. Qg3 {[%emt 0:00:06]} Nxe4 {[%emt 0:07:47]} 9. Nxe4 {[%emt 0:00:07]} Rxe4 {[%emt 0:00:02]} 10. c3 {[%emt 0:00:07]} Bd6 {[%emt 0:04:43]} 11. f4 {[%emt 0:00:06]} Qf6 {[%emt 0:04:49]} 12. Nh3 {[%emt 0:01:16]} Ra4 {[%emt 0:07:59]} 13. Bd3 {[%emt 0:02:58]} *

[Event "17th Memorial Lezcano Montalvo 2025"]
[Site "Gran Canaria"]
[Date "2025.04.19"]
[Round "8.22"]
[White "Ludishev, Artem"]
[Black "Rodriguez Lopez, David"]
[Result "0-1"]
[Annotator "RC"]
[ECO "C22"]
[WhiteElo "1874"]
[BlackElo "2182"]
[PlyCount "144"]
[EventDate "2025.04.13"]
[EventType "swiss"]
[EventCountry "ESP"]
[SourceTitle "playchess.com"]
[Source "ChessBase"]
[SourceQuality "1"]
[TimeControl "5400+30"]

1. e4 {[%emt 0:00:02]} e5 {[%emt 0:00:10]} 2. d4 {[%emt 0:00:26]} exd4 {[%emt 0:00:41]} 3. Qxd4 {[%emt 0:00:07]} Nc6 {[%emt 0:00:18]} 4. Qe3 {[%emt 0:00:22]} Nf6 {[%emt 0:00:33]} 5. Nc3 {[%emt 0:00:06]} Bb4 {[%emt 0:00:30]} 6. Bd2 {[%emt 0:00:07]} O-O {[%emt 0:00:28]} 7. O-O-O {[%emt 0:00:54]} Re8 {[%emt 0:00:27]} 8. Qg3 {[%emt 0:00:06]} Nxe4 {[%emt 0:07:47]} 9. Nxe4 {[%emt 0:00:07]} Rxe4 {[%emt 0:00:02]} 10. c3 {[%emt 0:00:07]} Bd6 {[%emt 0:04:43]} 11. f4 {[%emt 0:00:06]} Qf6 {[%emt 0:04:49]} 12. Nh3 {[%emt 0:01:16]} Ra4 {[%emt 0:07:59]} 13. Bd3 {[%emt 0:02:58]} b6 {[%emt 0:01:57]} 14. Kb1 {[%emt 0:08:06]} Bb7 {[%emt 0:07:58]} 15. Bc2 {[%emt 0:04:24]} Ra5 {[%emt 0:00:13]} 16. Rhe1 {[%emt 0:09:43]} Bf8 {[%emt 0:06:27]} 17. Qd3 {[%emt 0:06:46]} g6 {[%emt 0:00:34]} 18. Qxd7 {[%emt 0:14:21]} Rd8 {[%emt 0:08:59]} 19. Qxc7 {[%emt 0:00:50]} Ba8 {[%emt 0:03:48]} 20. f5 {[%emt 0:10:09]} Rad5 {[%emt 0:01:15]} 21. Bg5 {[%emt 0:03:31]} Rxd1+ {[%emt 0:00:09]} 22. Bxd1 {[%emt 0:00:42]} Qxf5+ {[%emt 0:05:52]} 23. Bc2 {[%emt 0:00:05]} Rc8 {[%emt 0:00:04]} 24. Bxf5 {[%emt 0:05:58]} Rxc7 {[%emt 0:00:00]} 25. Re8 {[%emt 0:00:40]} Kg7 {[%emt 0:00:09]} 26. Bxg6 {[%emt 0:06:28]} hxg6 {[%emt 0:01:00]} 27. Rxa8 {[%emt 0:00:10]} Bd6 {[%emt 0:00:30]} 28. Bf4 {[%emt 0:01:18]} Bxf4 {[%emt 0:00:16]} 29. Nxf4 {[%emt 0:00:01]} g5 {[%emt 0:00:16]} 30. Nd5 {[%emt 0:05:14]} Rd7 {[%emt 0:00:05]} 31. c4 {[%emt 0:00:07]} Ne5 {[%emt 0:00:22]} 32. b3 {[%emt 0:01:47]} b5 {[%emt 0:00:04]} 33. Re8 {[%emt 0:03:38]} f6 {[%emt 0:00:04]} 34. Re6 {[%emt 0:06:53]} bxc4 {[%emt 0:01:38]} 35. bxc4 {[%emt 0:00:17]} Nxc4 {[%emt 0:00:23]} 36. Nxf6 {[%emt 0:01:14]} Rd2 {[%emt 0:04:44]} 37. Ne4 {[%emt 0:01:20]} Rb2+ {[%emt 0:00:33]} 38. Kc1 {[%emt 0:00:12]} Rxg2 {[%emt 0:00:20]} 39. Ra6 {[%emt 0:01:17]} g4 {[%emt 0:02:47]} 40. Kd1 {[%emt 0:01:48]} Rxh2 {[%emt 0:01:26]} 41. Ke1 {[%emt 0:00:14]} Ne3 {[%emt 0:01:54]} 42. a4 {[%emt 0:00:45]} Ra2 {[%emt 0:01:42]} 43. Nc3 {[%emt 0:02:29]} Rc2 {[%emt 0:02:27]} 44. Ne4 {[%emt 0:02:34]} Ng2+ {[%emt 0:03:48]} 45. Kf1 {[%emt 0:01:24]} Ne3+ {[%emt 0:00:04]} 46. Ke1 {[%emt 0:00:07]} Rc7 {[%emt 0:00:37]} 47. Ke2 {[%emt 0:01:25]} Nf5 {[%emt 0:00:18]} 48. Nd6 {[%emt 0:01:10]} Nxd6 {[%emt 0:04:50]} 49. Rxd6 {[%emt 0:00:02]} Kf8 {[%emt 0:00:12]} 50. Ke3 {[%emt 0:00:54]} Rg7 {[%emt 0:01:18]} 51. Kf2 {[%emt 0:00:20]} Ke7 {[%emt 0:00:35]} 52. Rd4 {[%emt 0:00:48]} g3+ {[%emt 0:01:05]} 53. Kg2 {[%emt 0:00:04]} Ke6 {[%emt 0:00:06]} 54. Rd3 {[%emt 0:00:35]} Rg4 {[%emt 0:00:23]} 55. Ra3 {[%emt 0:00:53]} a5 {[%emt 0:00:21]} 56. Ra2 {[%emt 0:00:30]} Kd5 {[%emt 0:00:20]} 57. Ra1 {[%emt 0:00:18]} Kc5 {[%emt 0:00:43]} 58. Kf3 {[%emt 0:00:09]} Rg8 {[%emt 0:00:08]} 59. Kg2 {[%emt 0:00:08]} Kb4 {[%emt 0:00:05]} 60. Ra2 {[%emt 0:01:11]} Kb3 {[%emt 0:00:05]} 61. Ra1 {[%emt 0:00:03]} Rg7 {[%emt 0:00:05]} 62. Rb1+ {[%emt 0:00:35]} Kxa4 {[%emt 0:00:06]} 63. Rb6 {[%emt 0:00:11]} Ka3 {[%emt 0:00:09]} 64. Rb5 {[%emt 0:00:08]} a4 {[%emt 0:00:04]} 65. Rb8 {[%emt 0:00:11]} Ka2 {[%emt 0:00:06]} 66. Rb6 {[%emt 0:00:15]} a3 {[%emt 0:00:13]} 67. Rb8 {[%emt 0:00:03]} Ka1 {[%emt 0:00:10]} 68. Rb6 {[%emt 0:00:05]} a2 {[%emt 0:00:09]} 69. Rb3 {[%emt 0:00:19]} Rc7 {[%emt 0:00:22]} 70. Kxg3 {[%emt 0:00:18]} Rc1 {[%emt 0:00:21]} 71. Kf2 {[%emt 0:01:22]} Rb1 {[%emt 0:00:05]} 72. Re3 {[%emt 0:00:26]} Kb2 {[%emt 0:00:05]} 0-1

[Event "17th Memorial Lezcano Montalvo 2025"]
[Site "Gran Canaria"]
[Date "2025.04.19"]
[Round "8.23"]
[White "Yelisieiev, Yevhenii"]
[Black "Ramirez Maillo, Juan Adonay"]
[Result "*"]
[Annotator "ChessBase"]
[ECO "A22"]
[WhiteElo "2413"]
[BlackElo "1956"]
[PlyCount "23"]
[EventDate "2025.04.13"]
[EventType "swiss"]
[EventCountry "ESP"]
[SourceTitle "playchess.com"]
[Source "ChessBase"]
[SourceQuality "1"]
[TimeControl "5400+30"]

1. c4 {[%emt 0:00:03]} Nf6 {[%emt 0:00:25]} 2. Nc3 {[%emt 0:00:08]} d6 {[%emt 0:00:31]} 3. g3 {[%emt 0:00:12]} e5 {[%emt 0:00:12]} 4. Bg2 {[%emt 0:00:06]} Be7 {[%emt 0:03:39]} 5. e4 {[%emt 0:00:16]} c6 {[%emt 0:01:55]} 6. Nge2 {[%emt 0:00:13]} O-O {[%emt 0:00:20]} 7. O-O {[%emt 0:00:14]} a5 {[%emt 0:00:00]} 8. f4 {[%emt 0:02:38]} Qb6+ {[%emt 0:00:00]} 9. d4 {[%emt 0:01:34]} Na6 {[%emt 0:00:00]} 10. h3 {[%emt 0:03:45]} exd4 {[%emt 0:00:00]} 11. Nxd4 {[%emt 0:01:54]} Nc5 {[%emt 0:00:00]} 12. Kh2 {[%emt 1:25:27]} *

[Event "17th Memorial Lezcano Montalvo 2025"]
[Site "Gran Canaria"]
[Date "2025.04.19"]
[Round "8.23"]
[White "Marrero Cardenes, Agustin"]
[Black "Gonzalez Martinez, Miguel Angel"]
[Result "1-0"]
[Annotator "RC"]
[ECO "A22"]
[WhiteElo "2163"]
[BlackElo "2134"]
[PlyCount "81"]
[EventDate "2025.04.13"]
[EventType "swiss"]
[EventCountry "ESP"]
[SourceTitle "playchess.com"]
[Source "ChessBase"]
[SourceQuality "1"]
[TimeControl "5400+30"]

1. c4 {[%emt 0:00:03]} Nf6 {[%emt 0:00:25]} 2. Nc3 {[%emt 0:00:08]} d6 {[%emt 0:00:31]} 3. g3 {[%emt 0:00:12]} e5 {[%emt 0:00:12]} 4. Bg2 {[%emt 0:00:06]} Be7 {[%emt 0:03:39]} 5. e4 {[%emt 0:00:16]} c6 {[%emt 0:01:55]} 6. Nge2 {[%emt 0:00:13]} O-O {[%emt 1:26:48]} 7. O-O {[%emt 0:00:14]} a5 {[%emt 0:00:00]} 8. f4 {[%emt 0:02:38]} Qb6+ {[%emt 0:00:00]} 9. d4 {[%emt 0:01:34]} Na6 {[%emt 0:00:00]} 10. h3 {[%emt 0:03:45]} exd4 {[%emt 0:00:00]} 11. Nxd4 {[%emt 0:01:54]} Nc5 {[%emt 0:00:00]} 12. Kh2 {[%emt 0:03:33]} Re8 {[%emt 0:00:00]} 13. Rb1 {[%emt 0:14:03]} Bf8 {[%emt 0:00:00]} 14. Re1 {[%emt 0:00:17]} g6 {[%emt 0:00:00]} 15. b3 {[%emt 0:02:24]} Bd7 {[%emt 0:00:00]} 16. Nc2 {[%emt 0:08:04]} Qc7 {[%emt 0:00:00]} 17. a3 {[%emt 0:08:46]} Bg7 {[%emt 0:00:00]} 18. Nd4 {[%emt 0:06:41]} Re7 {[%emt 0:00:00]} 19. b4 {[%emt 0:02:05]} Na6 {[%emt 0:00:00]} 20. Be3 {[%emt 0:02:48]} Rae8 {[%emt 0:00:00]} 21. Qd3 {[%emt 0:02:14]} axb4 {[%emt 0:00:00]} 22. axb4 {[%emt 0:00:09]} Bc8 {[%emt 0:00:00]} 23. Bf2 {[%emt 0:08:50]} h5 {[%emt 0:00:00]} 24. Nc2 {[%emt 0:04:33]} d5 {[%emt 0:00:00]} 25. cxd5 {[%emt 0:06:56]} cxd5 {[%emt 0:00:00]} 26. e5 {[%emt 0:05:59]} Bf5 {[%emt 0:00:00]} 27. Qd2 {[%emt 0:00:02]} Ne4 {[%emt 0:00:00]} 28. Nxe4 {[%emt 0:02:34]} dxe4 {[%emt 0:00:00]} 29. Bxe4 {[%emt 0:02:47]} Rd7 {[%emt 0:01:33]} 30. Qe2 {[%emt 0:00:43]} Red8 {[%emt 0:01:22]} 31. Bxf5 {[%emt 0:01:23]} Rd2 {[%emt 0:00:07]} 32. Qf3 {[%emt 0:01:30]} gxf5 {[%emt 0:01:06]} 33. Ne3 {[%emt 0:00:48]} R8d3 {[%emt 0:02:33]} 34. Kg1 {[%emt 0:01:09]} h4 {[%emt 0:00:38]} 35. g4 {[%emt 0:01:12]} Qc3 {[%emt 0:01:10]} 36. gxf5 {[%emt 0:01:05]} Nxb4 {[%emt 0:03:04]} 37. f6 {[%emt 0:00:17]} Bh6 {[%emt 0:00:55]} 38. Qg4+ {[%emt 0:01:10]} Kh7 {[%emt 0:00:33]} 39. Qh5 {[%emt 0:01:38]} Rxf2 {[%emt 0:01:04]} 40. Kxf2 {[%emt 0:00:31]} Rd7 {[%emt 0:00:51]} 41. Qf5+ {[%emt 0:00:09]} 1-0

[Event "17th Memorial Lezcano Montalvo 2025"]
[Site "Gran Canaria"]
[Date "2025.04.19"]
[Round "8.24"]
[White "Barlov, Dragan"]
[Black "De La Cruz Perez, Carlos"]
[Result "1/2-1/2"]
[Annotator "RC"]
[ECO "C01"]
[WhiteElo "2351"]
[BlackElo "1835"]
[PlyCount "142"]
[EventDate "2025.04.13"]
[EventType "swiss"]
[EventCountry "ESP"]
[SourceTitle "playchess.com"]
[Source "ChessBase"]
[SourceQuality "1"]
[TimeControl "5400+30"]

1. c4 {[%emt 0:01:39]} e6 {[%emt 0:00:13]} 2. e4 {[%emt 0:00:24]} d5 {[%emt 0:00:13]} 3. exd5 {[%emt 0:00:04]} exd5 {[%emt 0:00:07]} 4. d4 {[%emt 0:00:04]} Nf6 {[%emt 0:00:56]} 5. Nc3 {[%emt 0:00:09]} Be7 {[%emt 0:04:07]} 6. Bd3 {[%emt 0:14:58]} dxc4 {[%emt 0:01:58]} 7. Bxc4 {[%emt 0:00:14]} O-O {[%emt 0:00:22]} 8. Nge2 {[%emt 0:00:52]} Nbd7 {[%emt 0:03:41]} 9. O-O {[%emt 0:02:50]} Nb6 {[%emt 0:01:03]} 10. Bb3 {[%emt 0:01:52]} c6 {[%emt 0:01:18]} 11. Ng3 {[%emt 0:11:27]} Nbd5 {[%emt 0:04:40]} 12. Nxd5 {[%emt 0:11:32]} Nxd5 {[%emt 0:00:59]} 13. Qf3 {[%emt 0:01:41]} Qd6 {[%emt 0:16:10]} 14. Re1 {[%emt 0:02:23]} Be6 {[%emt 0:17:31]} 15. Bd2 {[%emt 0:01:47]} Nc7 {[%emt 0:01:38]} 16. Bf4 {[%emt 0:02:20]} Qd7 {[%emt 0:00:21]} 17. Bc2 {[%emt 0:10:39]} Nd5 {[%emt 0:03:56]} 18. Be5 {[%emt 0:04:34]} g6 {[%emt 0:05:25]} 19. h3 {[%emt 0:03:28]} f6 {[%emt 0:02:44]} 20. Bf4 {[%emt 0:00:05]} Nxf4 {[%emt 0:00:16]} 21. Qxf4 {[%emt 0:00:06]} Bd6 {[%emt 0:01:56]} 22. Qe3 {[%emt 0:00:26]} Rfe8 {[%emt 0:00:39]} 23. Ne4 {[%emt 0:06:24]} Be7 {[%emt 0:03:01]} 24. Bb3 {[%emt 0:00:49]} Bxb3 {[%emt 0:02:00]} 25. Qxb3+ {[%emt 0:00:22]} Kg7 {[%emt 0:00:07]} 26. Rad1 {[%emt 0:01:13]} f5 {[%emt 0:02:52]} 27. Nc3 {[%emt 0:00:26]} Bf6 {[%emt 0:01:19]} 28. Rxe8 {[%emt 0:03:27]} Rxe8 {[%emt 0:00:06]} 29. d5 {[%emt 0:00:03]} Qf7 {[%emt 0:01:59]} 30. Qc2 {[%emt 0:03:23]} cxd5 {[%emt 0:01:01]} 31. Nxd5 {[%emt 0:00:39]} Rd8 {[%emt 0:00:29]} 32. Qb3 {[%emt 0:03:51]} Rd7 {[%emt 0:03:56]} 33. Rd3 {[%emt 0:00:45]} Rd8 {[%emt 0:02:15]} 34. a4 {[%emt 0:00:32]} b6 {[%emt 0:00:49]} 35. g3 {[%emt 0:01:06]} Qe6 {[%emt 0:01:47]} 36. Kf1 {[%emt 0:00:40]} Qe4 {[%emt 0:00:56]} 37. f3 {[%emt 0:04:39]} Qe5 {[%emt 0:02:16]} 38. Nxf6 {[%emt 0:00:56]} Qxf6 {[%emt 0:00:08]} 39. Rxd8 {[%emt 0:00:28]} Qxd8 {[%emt 0:00:04]} 40. Qc3+ {[%emt 0:00:17]} Qf6 {[%emt 0:00:33]} 41. Qc7+ {[%emt 0:02:45]} Qf7 {[%emt 0:01:47]} 42. Qc2 {[%emt 0:00:16]} Qd5 {[%emt 0:01:30]} 43. Qc3+ {[%emt 0:00:14]} Kg8 {[%emt 0:00:04]} 44. Kf2 {[%emt 0:01:26]} Kf7 {[%emt 0:00:48]} 45. Kg2 {[%emt 0:03:43]} Qd1 {[%emt 0:01:50]} 46. Qc4+ {[%emt 0:00:19]} Kf6 {[%emt 0:00:20]} 47. Qc3+ {[%emt 0:00:39]} Kf7 {[%emt 0:00:12]} 48. b3 {[%emt 0:00:10]} Qe2+ {[%emt 0:01:57]} 49. Kg1 {[%emt 0:00:02]} Ke6 {[%emt 0:01:25]} 50. Qc6+ {[%emt 0:01:27]} Kf7 {[%emt 0:00:05]} 51. Qd5+ {[%emt 0:00:12]} Qe6 {[%emt 0:00:26]} 52. Qd3 {[%emt 0:00:17]} Qe5 {[%emt 0:01:21]} 53. Qc4+ {[%emt 0:01:14]} Qe6 {[%emt 0:00:06]} 54. Qc7+ {[%emt 0:00:30]} Qe7 {[%emt 0:00:04]} 55. Qc2 {[%emt 0:00:14]} Qc5+ {[%emt 0:05:58]} 56. Qxc5 {[%emt 0:00:05]} bxc5 {[%emt 0:00:03]} 57. Kf2 {[%emt 0:00:02]} Ke6 {[%emt 0:00:05]} 58. Ke3 {[%emt 0:00:02]} Kd5 {[%emt 0:00:23]} 59. Kd3 {[%emt 0:00:08]} a6 {[%emt 0:00:18]} 60. h4 {[%emt 0:02:27]} h6 {[%emt 0:02:05]} 61. Kc3 {[%emt 0:00:21]} Kd6 {[%emt 0:00:27]} 62. Kc4 {[%emt 0:00:50]} Kc6 {[%emt 0:00:07]} 63. g4 {[%emt 0:00:27]} fxg4 {[%emt 0:00:26]} 64. fxg4 {[%emt 0:00:01]} g5 {[%emt 0:00:33]} 65. h5 {[%emt 0:00:58]} Kd6 {[%emt 0:00:12]} 66. Kc3 {[%emt 0:00:27]} Ke5 {[%emt 0:01:58]} 67. Kc4 {[%emt 0:00:20]} Kd6 {[%emt 0:00:06]} 68. b4 {[%emt 0:00:42]} cxb4 {[%emt 0:00:04]} 69. Kxb4 {[%emt 0:00:01]} Kc6 {[%emt 0:00:08]} 70. Ka5 {[%emt 0:00:55]} Kb7 {[%emt 0:00:04]} 71. Kb4 {[%emt 0:00:02]} Kc6 {[%emt 0:00:07]} 1/2-1/2

[Event "17th Memorial Lezcano Montalvo 2025"]
[Site "Gran Canaria"]
[Date "2025.04.19"]
[Round "8.24"]
[White "Estremera Panos, Sergio"]
[Black "Ramos Santana, Marcelino"]
[Result "*"]
[Annotator "ChessBase"]
[ECO "C01"]
[WhiteElo "2195"]
[BlackElo "1903"]
[PlyCount "20"]
[EventDate "2025.04.13"]
[EventType "swiss"]
[EventCountry "ESP"]
[SourceTitle "playchess.com"]
[Source "ChessBase"]
[SourceQuality "1"]
[TimeControl "5400+30"]

1. c4 {[%emt 0:01:39]} e6 {[%emt 0:00:13]} 2. e4 {[%emt 0:00:24]} d5 {[%emt 0:00:13]} 3. exd5 {[%emt 0:00:04]} exd5 {[%emt 0:00:07]} 4. d4 {[%emt 0:00:04]} Nf6 {[%emt 0:00:56]} 5. Nc3 {[%emt 0:00:09]} Be7 {[%emt 0:04:07]} 6. Bd3 {[%emt 0:14:58]} dxc4 {[%emt 1:27:54]} 7. Bxc4 {[%emt 0:00:14]} O-O {[%emt 0:00:22]} 8. Nge2 {[%emt 0:00:52]} Nbd7 {[%emt 0:03:41]} 9. O-O {[%emt 0:02:50]} Nb6 {[%emt 0:01:03]} 10. Bb3 {[%emt 0:01:52]} c6 {[%emt 0:01:18]} *

[Event "17th Memorial Lezcano Montalvo 2025"]
[Site "Gran Canaria"]
[Date "2025.04.19"]
[Round "8.25"]
[White "Hernando Rodrigo, Jose Maria"]
[Black "Blanco Barros, Juan Carlos"]
[Result "1/2-1/2"]
[Annotator "RC"]
[ECO "A81"]
[WhiteElo "2256"]
[BlackElo "1941"]
[PlyCount "97"]
[EventDate "2025.04.13"]
[EventType "swiss"]
[EventCountry "ESP"]
[SourceTitle "playchess.com"]
[Source "ChessBase"]
[SourceQuality "1"]
[TimeControl "5400+30"]

1. d4 {[%emt 0:07:44]} f5 {[%emt 0:00:29]} 2. g3 {[%emt 0:01:35]} Nf6 {[%emt 0:00:13]} 3. Bg2 {[%emt 0:00:06]} g6 {[%emt 0:00:17]} 4. Nh3 {[%emt 0:00:33]} Bg7 {[%emt 0:00:12]} 5. Nf4 {[%emt 0:00:36]} O-O {[%emt 0:01:28]} 6. h4 {[%emt 0:00:21]} d6 {[%emt 0:01:10]} 7. d5 {[%emt 0:00:51]} Qe8 {[%emt 0:00:55]} 8. h5 {[%emt 0:07:59]} g5 {[%emt 0:04:45]} 9. h6 {[%emt 0:00:08]} Bh8 {[%emt 0:00:45]} 10. Nh3 {[%emt 0:15:24]} g4 {[%emt 0:02:41]} 11. Nf4 {[%emt 0:00:04]} c6 {[%emt 0:00:25]} 12. Nc3 {[%emt 0:00:25]} Na6 {[%emt 0:00:48]} 13. Be3 {[%emt 0:01:01]} Nc7 {[%emt 0:02:11]} 14. Qd3 {[%emt 0:02:09]} Bd7 {[%emt 0:01:21]} 15. O-O-O {[%emt 0:07:27]} c5 {[%emt 0:00:59]} 16. Ne6 {[%emt 0:12:09]} Nb5 {[%emt 0:00:17]} 17. Nxb5 {[%emt 0:00:51]} Bxb5 {[%emt 0:00:12]} 18. Qxf5 {[%emt 0:00:38]} Bd7 {[%emt 0:10:46]} 19. Qg5+ {[%emt 0:02:56]} Kf7 {[%emt 0:00:31]} 20. Nxf8 {[%emt 0:00:14]} Qxf8 {[%emt 0:00:20]} 21. f3 {[%emt 0:01:20]} Qd8 {[%emt 0:00:35]} 22. fxg4 {[%emt 0:06:53]} Qa5 {[%emt 0:07:51]} 23. Qf4 {[%emt 0:00:14]} Qxa2 {[%emt 1:02:49]} 24. g5 {[%emt 0:30:52]} Kg8 {[%emt 0:00:00]} 25. gxf6 {[%emt 0:00:00]} Bxf6 {[%emt 0:00:00]} 26. Kd2 {[%emt 0:00:00]} Qxb2 {[%emt 0:00:00]} 27. Qc4 {[%emt 0:00:00]} b5 {[%emt 0:00:00]} 28. Qb3 {[%emt 0:00:00]} Qe5 {[%emt 0:00:00]} 29. Bf4 {[%emt 0:00:00]} Qd4+ {[%emt 0:00:00]} 30. Ke1 {[%emt 0:00:00]} c4 {[%emt 0:00:00]} 31. Rxd4 {[%emt 0:00:00]} cxb3 {[%emt 0:00:00]} 32. Rd3 {[%emt 0:00:00]} b2 {[%emt 0:00:00]} 33. Kd2 {[%emt 0:00:00]} a5 {[%emt 0:00:00]} 34. c3 {[%emt 0:00:00]} a4 {[%emt 0:00:00]} 35. Kc2 {[%emt 0:00:00]} a3 {[%emt 0:00:00]} 36. Rd4 {[%emt 0:00:00]} Bxd4 {[%emt 0:00:00]} 37. cxd4 {[%emt 0:00:00]} b4 {[%emt 0:00:00]} 38. Bd2 {[%emt 0:02:29]} Rc8+ {[%emt 0:00:00]} 39. Kb1 {[%emt 0:00:53]} Rc4 {[%emt 0:00:00]} 40. Be4 {[%emt 0:00:41]} b3 {[%emt 0:00:00]} 41. Bd3 {[%emt 0:00:40]} Rc2 {[%emt 0:00:00]} 42. Bxc2 {[%emt 0:01:14]} bxc2+ {[%emt 0:00:00]} 43. Kxc2 {[%emt 0:00:02]} Bf5+ {[%emt 0:00:00]} 44. Kb3 {[%emt 0:00:11]} b1=Q+ {[%emt 0:10:30]} 45. Rxb1 {[%emt 0:00:08]} Bxb1 {[%emt 0:00:00]} 46. Kxa3 {[%emt 0:00:10]} Be4 {[%emt 0:00:00]} 47. Kb4 {[%emt 0:00:32]} Bxd5 {[%emt 0:00:00]} 48. Kc3 {[%emt 0:00:02]} Be4 {[%emt 0:00:00]} 49. Bf4 {[%emt 0:01:19]} 1/2-1/2